fUST/lending_fUST_20240612
["ID","MTS","AMOUNT","RATE_DAILY","PERIOD"]
[329247969,1718200246482,-500.0,0.00016711,2]
[329247970,1718200246499,-500.0,0.00016711,2]
[329247971,1718200246509,-500.0,0.00016711,2]
[329247972,1718200246523,-500.0,0.00016711,2]
[329247973,1718200246538,-500.0,0.00016711,2]
[329247974,1718200246555,-500.0,0.00016711,2]
[329247975,1718200246568,-500.0,0.00016711,2]
[329247976,1718200246579,-500.0,0.00016711,2]
[329247977,1718200246590,-500.0,0.00016712,2]
[329247978,1718200246601,-500.0,0.00016712,2]
[329247979,1718200246614,-500.0,0.00016712,2]
[329247980,1718200246625,-504.24434647,0.00016712,2]
[329247981,1718200246640,-500.0,0.00016712,2]
[329247984,1718200246653,-500.0,0.00016712,2]
[329247986,1718200246664,-500.0,0.00016712,2]
[329247988,1718200246701,-500.0,0.00016712,2]
[329247990,1718200246719,-500.0,0.00016712,2]
[329247991,1718200246734,-500.0,0.00016712,2]
[329247992,1718200246750,-437.7783306,0.00016712,2]
[329247993,1718200246766,-500.0078982,0.00016712,2]
[329247994,1718200246790,-500.0,0.00016712,2]
[329247995,1718200246801,-500.0,0.00016712,2]
[329247996,1718200246812,-500.0,0.00016712,2]
[329247997,1718200246823,-500.0,0.00016712,2]
[329247998,1718200246836,-501.77541228,0.00016712,2]
[329247999,1718200246847,-500.0,0.00016712,2]
[329248000,1718200246858,-500.0,0.00016712,2]
[329248001,1718200246871,-505.67910671,0.00016712,2]
[329248002,1718200246883,-500.96478748,0.00016712,2]
[329248003,1718200246894,-500.0,0.00016712,2]
[329248004,1718200246904,-500.0,0.00016712,2]
[329248005,1718200246916,-500.0,0.00016712,2]
[329248006,1718200246927,-500.0,0.00016712,2]
[329248007,1718200246939,-500.0,0.00016712,2]
[329248008,1718200246954,-504.29185432,0.00016712,2]
[329248009,1718200246965,-500.0,0.00016712,2]
[329248010,1718200246979,-500.0,0.00016712,2]
[329248011,1718200246993,-510.16329444,0.00016712,2]
[329248012,1718200247004,-501.86105742,0.00016712,2]
[329248013,1718200247014,-500.0,0.00016712,2]
[329248014,1718200247025,-500.0,0.00016712,2]
[329248015,1718200247037,-500.0,0.00016712,2]
[329248016,1718200247048,-183.79379664,0.00016712,2]
[329248017,1718200247063,-500.0,0.00016712,2]
[329248018,1718200247074,-500.0,0.00016712,2]
[329248019,1718200247085,-502.56547321,0.00016712,2]
[329248020,1718200247095,-500.0,0.00016712,2]
[329248021,1718200247106,-502.24837034,0.00016712,2]
[329248022,1718200247117,-500.0,0.00016712,2]
[329248023,1718200247127,-524.55338228,0.00016712,2]
[329248024,1718200247138,-500.0,0.00016712,2]
[329248025,1718200247149,-500.0,0.00016712,2]
[329248026,1718200247160,-500.0,0.00016712,2]
[329248027,1718200247170,-500.0,0.00016712,2]
[329248028,1718200247181,-500.0,0.00016712,2]
[329248029,1718200247191,-536.13,0.00016712,2]
[329248030,1718200247201,-559.01,0.00016712,2]
[329248031,1718200247213,-500.0,0.00016712,2]
[329248032,1718200247223,-500.0,0.00016712,2]
[329248033,1718200247234,-375.15954391,0.00016712,2]
[329248034,1718200247245,-500.0,0.00016712,2]
[329248035,1718200247255,-535.66,0.00016712,4]
[329248036,1718200247266,-500.0,0.00016712,2]
[329248037,1718200247282,-500.0,0.00016712,2]
[329248038,1718200247304,-500.0,0.00016712,2]
[329248039,1718200247314,-500.0,0.00016712,2]
[329248040,1718200247325,-606.71,0.00016712,2]
[329248041,1718200247336,-500.0,0.00016712,2]
[329248042,1718200247346,-599.80711365,0.00016712,2]
[329248043,1718200247357,-500.0,0.00016712,2]
[329248044,1718200247368,-500.0,0.00016712,2]
[329248045,1718200247379,-500.0,0.00016712,2]
[329248047,1718200247390,-250.0,0.00016712,2]
[329248048,1718200247400,-500.0,0.00016712,2]
[329248049,1718200247411,-500.0,0.00016712,2]
[329248050,1718200247421,-500.0,0.00016712,2]
[329248051,1718200247433,-500.0,0.00016712,2]
[329248052,1718200247444,-505.30895665,0.00016712,2]
[329248053,1718200247460,-500.0,0.00016712,2]
[329248054,1718200247479,-500.0,0.00016712,2]
[329248055,1718200247490,-500.0,0.00016712,2]
[329248056,1718200247502,-500.0,0.00016712,2]
[329248057,1718200247512,-500.0,0.00016712,2]
[329248058,1718200247523,-500.0,0.00016712,2]
[329248059,1718200247536,-588.69096662,0.00016712,2]
[329248060,1718200247547,-500.0,0.00016712,2]
[329248061,1718200247557,-500.0,0.00016712,2]
[329248062,1718200247569,-500.0,0.00016712,2]
[329248063,1718200247579,-500.0,0.00016712,2]
[329248064,1718200247590,-500.0,0.00016712,2]
[329248065,1718200247601,-500.0,0.00016712,2]
[329248066,1718200247612,-500.0,0.00016712,2]
[329248067,1718200247622,-500.0,0.00016712,2]
[329248068,1718200247633,-500.0,0.00016712,2]
[329248069,1718200247644,-500.0,0.00016712,2]
[329248070,1718200247655,-503.40066937,0.00016712,2]
[329248071,1718200247665,-500.0,0.00016712,2]
[329248072,1718200247687,-500.0,0.00016712,2]
[329248073,1718200247702,-500.0,0.00016712,2]
[329248074,1718200247713,-500.0,0.00016712,2]
[329248075,1718200247727,-500.0,0.00016712,2]
[329248076,1718200247739,-530.44,0.00016712,2]
[329248077,1718200247766,-500.0,0.00016712,2]
[329248078,1718200247777,-500.0,0.00016712,2]
[329248079,1718200247791,-500.0,0.00016712,2]
[329248080,1718200247806,-500.0,0.00016712,2]
[329248081,1718200247819,-500.0,0.00016712,2]
[329248082,1718200247830,-500.0,0.00016712,2]
[329248083,1718200247841,-500.0,0.00016712,2]
[329248084,1718200247852,-907.46,0.00016712,2]
[329248085,1718200247864,-500.0,0.00016712,2]
[329248086,1718200247879,-500.0,0.00016712,2]
[329248087,1718200247890,-500.0,0.00016712,2]
[329248088,1718200247901,-500.0,0.00016712,2]
[329248089,1718200247913,-887.69,0.00016712,2]
[329248090,1718200247924,-4525.27,0.00016712,2]
[329248091,1718200247935,-500.0,0.00016712,2]
[329248092,1718200247947,-500.0,0.00016712,2]
[329248093,1718200247959,-504.86257942,0.00016712,2]
[329248094,1718200247970,-500.0,0.00016712,2]
[329248096,1718200247981,-1762.09,0.00016712,2]
[329248098,1718200247993,-500.0,0.00016712,2]
[329248100,1718200248004,-156.62261596,0.00016712,2]
[329248101,1718200248015,-514.72338599,0.00016712,2]
[329248102,1718200248026,-500.0,0.00016712,2]
[329248103,1718200248040,-636.08,0.00016712,2]
[329248104,1718200248051,-500.0,0.00016712,2]
[329248105,1718200248062,-500.0,0.00016712,2]
[329248106,1718200248072,-520.51,0.00016712,2]
[329248107,1718200248083,-501.02754867,0.00016712,2]
[329248108,1718200248093,-502.97530298,0.00016712,2]
[329248109,1718200248104,-500.0,0.00016712,2]
[329248110,1718200248114,-500.0,0.00016712,2]
[329248111,1718200248124,-500.0,0.00016712,2]
[329248112,1718200248134,-500.0,0.00016712,2]
[329248113,1718200248145,-500.0,0.00016712,2]
[329248114,1718200248156,-500.0,0.00016712,2]
[329248115,1718200248167,-500.0,0.00016712,2]
[329248116,1718200248178,-500.0,0.00016712,2]
[329248117,1718200248189,-500.0,0.00016712,2]
[329248118,1718200248200,-765.65,0.00016712,2]
[329248119,1718200248210,-500.0,0.00016712,2]
[329248120,1718200248220,-500.0,0.00016712,2]
[329248121,1718200248231,-331.61640641,0.00016712,2]
[329248122,1718200248395,-1298.19586907,0.00016712,2]
[329248123,1718200248408,-3771.56529281,0.00016712,2]
[329248129,1718200249025,-500.0,0.00016438,2]
[329248130,1718200249037,-191.9113065,0.000165,2]
[329248131,1718200249048,-1269.45144353,0.00016712,2]
[329248132,1718200249061,-394.77098818,0.00016712,2]
[329248133,1718200249073,-502.71221611,0.00016712,2]
[329248134,1718200249084,-4126.23,0.00016712,2]
[329248135,1718200249095,-15291.61,0.00016712,2]
[329248136,1718200249105,-500.0,0.00016712,2]
[329248137,1718200249116,-500.0,0.00016712,2]
[329248138,1718200249127,-273.40118207,0.00016712,2]
[329248139,1718200249138,-1288.46,0.00016712,2]
[329248140,1718200249149,-500.0,0.00016712,2]
[329248141,1718200249160,-1683.55,0.00016712,2]
[329248142,1718200249170,-501.90321206,0.00016712,2]
[329248143,1718200249181,-500.0,0.00016712,2]
[329248144,1718200249192,-500.0,0.00016712,2]
[329248145,1718200249202,-4155.87,0.00016712,2]
[329248146,1718200249213,-500.0,0.00016712,2]
[329248147,1718200249224,-500.0,0.00016712,2]
[329248148,1718200249235,-500.0,0.00016712,2]
[329248149,1718200249245,-500.0,0.00016712,2]
[329248150,1718200249256,-500.0,0.00016712,2]
[329248151,1718200249266,-500.0,0.00016712,2]
[329248152,1718200249277,-212.55552946,0.00016712,2]
[329248153,1718200249290,-500.0,0.00016712,2]
[329248154,1718200249302,-260.06303151,0.00016712,2]
[329248155,1718200249312,-500.0,0.00016712,2]
[329248156,1718200249323,-500.0,0.00016712,2]
[329248157,1718200249333,-715.19,0.00016712,2]
[329248158,1718200249343,-10708.86,0.00016712,2]
[329248159,1718200249353,-500.0,0.00016712,2]
[329248160,1718200249364,-500.0,0.00016712,2]
[329248161,1718200249375,-1501.07,0.00016712,2]
[329248162,1718200249386,-500.0,0.00016712,2]
[329248163,1718200249396,-500.0,0.00016712,2]
[329248164,1718200249407,-502.6169118,0.00016712,2]
[329248165,1718200249417,-500.0,0.00016712,2]
[329248166,1718200249429,-623.76,0.00016712,2]
[329248167,1718200249442,-501.46359089,0.00016712,2]
[329248168,1718200249452,-500.0,0.00016712,2]
[329248169,1718200249463,-851.07,0.00016712,2]
[329248170,1718200249473,-500.0,0.00016712,2]
[329248171,1718200249483,-306.66264168,0.00016712,2]
[329248172,1718200249494,-500.0,0.00016712,2]
[329248173,1718200249505,-172.43575819,0.00016712,2]
[329248174,1718200249515,-500.0,0.00016712,2]
[329248175,1718200249527,-722.45,0.00016712,2]
[329248176,1718200249537,-500.0,0.00016712,2]
[329248177,1718200249549,-412.96,0.00016712,2]
[329248178,1718200249560,-500.0,0.00016712,2]
[329248179,1718200249571,-500.0,0.00016712,2]
[329248180,1718200249582,-642.48336699,0.00016712,2]
[329248181,1718200249594,-500.0,0.00016712,2]
[329248182,1718200249605,-500.0,0.00016712,2]
[329248183,1718200249616,-500.0,0.00016712,2]
[329248184,1718200249627,-500.0,0.00016712,2]
[329248185,1718200249638,-500.0,0.00016712,2]
[329248186,1718200249649,-153.0,0.00016854,2]
[329248187,1718200249660,-488.85859381,0.00016902,2]
[329248188,1718200249671,-306.0,0.00016941,2]
[329248189,1718200249703,-377.54,0.00016984,2]
[329248190,1718200249853,-500.0,0.00016985,2]
[329248191,1718200249865,-500.0,0.00016985,2]
[329248192,1718200249879,-500.0,0.00016985,2]
[329248193,1718200249891,-500.0,0.00016985,2]
[329248194,1718200249902,-500.0,0.00016985,2]
[329248195,1718200249912,-500.0,0.00016985,2]
[329248196,1718200249924,-500.0,0.00016986,2]
[329248197,1718200249936,-500.0,0.00016986,2]
[329248198,1718200249947,-500.0,0.00016986,2]
[329248199,1718200249958,-500.0,0.00016986,2]
[329248200,1718200249971,-505.95418601,0.00016986,2]
[329248201,1718200249982,-500.0,0.00016986,2]
[329248202,1718200249993,-232.5680539,0.00016986,2]
[329248203,1718200250004,-500.0,0.00016986,2]
[329248204,1718200250015,-500.0,0.00016986,2]
[329248205,1718200250025,-319.30675189,0.00016986,2]
[329248206,1718200250039,-500.0,0.00016986,2]
[329248207,1718200250050,-500.0,0.00016986,2]
[329248208,1718200250060,-500.0,0.00016986,2]
[329248209,1718200250070,-500.0,0.00016986,2]
[329248210,1718200250081,-516.35672096,0.00016986,2]
[329248211,1718200250091,-386.97139399,0.00016986,2]
[329248212,1718200250106,-113.02860601,0.00016986,2]
[329248213,1718200250117,-363.66657306,0.00016986,2]
[329248214,1718200250128,-500.0,0.00016986,2]
[329248215,1718200250140,-500.0,0.00016986,2]
[329248216,1718200250151,-500.0,0.00016986,2]
[329248217,1718200250166,-500.0,0.00016986,2]
[329248218,1718200250177,-500.0,0.00016986,2]
[329248219,1718200250189,-500.0,0.00016986,2]
[329248220,1718200250200,-500.0,0.00016986,2]
[329248221,1718200250210,-500.0,0.00016986,2]
[329248222,1718200250221,-535.66,0.00016986,4]
[329248223,1718200250233,-500.0,0.00016986,2]
[329248224,1718200250245,-500.0,0.00016986,2]
[329248225,1718200250257,-500.0,0.00016986,2]
[329248226,1718200250268,-606.71,0.00016986,2]
[329248227,1718200250279,-336.09054098,0.00016986,2]
[329248228,1718200250294,-500.0,0.00016986,2]
[329248229,1718200250307,-500.0,0.00016986,2]
[329248230,1718200250318,-250.0,0.00016986,2]
[329248231,1718200250330,-500.0,0.00016986,2]
[329248232,1718200250341,-500.0,0.00016986,2]
[329248233,1718200250352,-500.0,0.00016986,2]
[329248234,1718200250365,-500.0,0.00016986,2]
[329248235,1718200250377,-500.0,0.00016986,2]
[329248236,1718200250388,-500.0,0.00016986,2]
[329248237,1718200250399,-500.0,0.00016986,2]
[329248238,1718200250411,-500.0,0.00016986,2]
[329248239,1718200250421,-613.72409257,0.00016986,2]
[329248240,1718200250432,-518.35004106,0.00016986,2]
[329248241,1718200250444,-391.37014632,0.00016986,2]
[329248242,1718200250458,-108.62985368,0.00016986,2]
[329248243,1718200250470,-500.0,0.00016986,2]
[329248244,1718200250481,-500.0,0.00016986,2]
[329248245,1718200250493,-500.0,0.00016986,2]
[329248246,1718200250504,-500.0,0.00016986,2]
[329248247,1718200250514,-500.0,0.00016986,2]
[329248248,1718200250525,-467.5,0.00016986,2]
[329248249,1718200250537,-500.0,0.00016986,2]
[329248250,1718200250548,-500.0,0.00016986,2]
[329248251,1718200250558,-502.57488504,0.00016986,2]
[329248252,1718200250569,-530.44,0.00016986,2]
[329248253,1718200250579,-500.0,0.00016986,2]
[329248254,1718200250590,-500.0,0.00016986,2]
[329248255,1718200250600,-500.0,0.00016986,2]
[329248256,1718200250611,-500.0,0.00016986,2]
[329248257,1718200250621,-500.0,0.00016986,2]
[329248258,1718200250632,-907.46,0.00016986,2]
[329248259,1718200250643,-500.0,0.00016986,2]
[329248260,1718200250654,-500.0,0.00016986,2]
[329248261,1718200250664,-887.69,0.00016986,2]
[329248262,1718200250676,-513.23153849,0.00016986,2]
[329248263,1718200250703,-500.0,0.00016986,2]
[329248264,1718200250714,-1762.09,0.00016986,2]
[329248265,1718200250725,-500.0,0.00016986,2]
[329248266,1718200250736,-500.0,0.00016986,2]
[329248267,1718200250747,-247.58608731,0.00016986,2]
[329248268,1718200250934,-500.0,0.00016438,2]
[329248269,1718200250945,-500.0,0.00016712,2]
[329248270,1718200250958,-388.49391269,0.00016986,2]
[329248271,1718200250969,-500.0,0.00016986,2]
[329248272,1718200250980,-520.51,0.00016986,2]
[329248273,1718200250990,-150.09224169,0.00016986,2]
[329248274,1718200251001,-500.0,0.00016986,2]
[329248275,1718200251012,-500.0,0.00016986,2]
[329248276,1718200251023,-500.0,0.00016986,2]
[329248277,1718200251035,-500.0,0.00016986,2]
[329248278,1718200251049,-504.03904831,0.00016986,2]
[329248279,1718200251059,-500.0,0.00016986,2]
[329248280,1718200251070,-500.0,0.00016986,2]
[329248281,1718200251081,-500.0,0.00016986,2]
[329248282,1718200251092,-765.65,0.00016986,2]
[329248283,1718200251103,-500.0,0.00016986,2]
[329248284,1718200251113,-500.0,0.00016986,2]
[329248285,1718200251124,-7065.6,0.00016986,2]
[329248286,1718200251134,-4126.23,0.00016986,2]
[329248287,1718200251145,-7786.29884646,0.00016986,2]
[329248305,1718200400808,1000.0,0.000266,120]
[329248308,1718200711729,7870.76725485,0.00016986,13]
[329248309,1718200769334,3935.38362742,0.00017,13]
[329248310,1718200829493,2373.62215266,0.00016986,13]
[329248312,1718200889672,1186.81107633,0.00016986,13]
[329248314,1718200951950,593.40553816,0.00016986,13]
[329248315,1718200998548,3000.0,0.000211,30]
[329248316,1718200999186,3000.0,0.0002111,30]
[329248317,1718200999785,3000.0,0.0002112,30]
[329248318,1718201001496,3000.0,0.0002113,30]
[329248319,1718201002159,3000.0,0.0002114,30]
[329248320,1718201002809,4583.955906,0.0002115,30]
[329248321,1718201012289,296.70276908,0.00016986,13]
[329248323,1718201072475,296.70276907,0.00016986,13]
[329248585,1718201434094,-196.711018,0.00015396,2]
[329248587,1718201434105,-300.0,0.00016334,2]
[329248591,1718201434277,-6737.28898198,0.00016335,2]
[329248609,1718201440266,-1184.53550883,0.00016335,2]
[329248611,1718201440285,-1103.65856874,0.00016336,2]
[329248612,1718201440298,-300.0,0.00016336,2]
[329248614,1718201440309,-494.22233255,0.00016337,2]
[329248616,1718201440323,-1007.57660038,0.00016338,2]
[329248618,1718201440334,-222.25158617,0.00016434,2]
[329248626,1718201441591,-1276.36919727,0.00016434,2]
[329248627,1718201441606,-302.72476705,0.00016434,2]
[329248628,1718201441618,-309.9380155,0.00016435,2]
[329248629,1718201441629,-2812.13279208,0.00016436,2]
[329248630,1718201441644,-764.36637913,0.00016436,2]
[329248631,1718201441655,-1294.52780377,0.00016436,2]
[329248632,1718201441667,-720.74038188,0.00016436,2]
[329248633,1718201441680,-281.85605547,0.00016436,2]
[329248634,1718201441701,-164.59629886,0.00016436,2]
[329248635,1718201441713,-1269.45637468,0.00016436,2]
[329248636,1718201441724,-11049.51431687,0.00016436,2]
[329248637,1718201441755,-945.32067944,0.00016436,2]
[329248638,1718201441771,-275.41755216,0.00016436,2]
[329248639,1718201441788,-691.28568206,0.00016436,2]
[329248640,1718201441800,-551.39540687,0.00016436,2]
[329248641,1718201441810,-215.95975088,0.00016436,2]
[329248642,1718201441821,-6713.54318341,0.00016436,2]
[329248643,1718201441838,-528.16653539,0.00016436,2]
[329248644,1718201441850,-1903.43712619,0.00016436,2]
[329248645,1718201441872,-514.52467594,0.00016436,2]
[329248646,1718201441892,-1342.40609524,0.00016436,2]
[329248647,1718201441905,-404.58962679,0.00016436,2]
[329248648,1718201441926,-539.0,0.00016436,2]
[329248649,1718201441940,-622.17193972,0.00016437,2]
[329248650,1718201441953,-501.25922791,0.00016438,2]
[329248651,1718201441966,-500.0,0.00016438,2]
[329248652,1718201441984,-517.26896291,0.00016438,2]
[329248653,1718201442007,-500.0,0.00016438,2]
[329248654,1718201442024,-500.0,0.00016438,2]
[329248655,1718201442038,-500.82052011,0.00016438,2]
[329248656,1718201442064,-500.0,0.00016438,2]
[329248657,1718201442083,-500.0,0.00016438,2]
[329248658,1718201442129,-500.70281404,0.00016438,2]
[329248659,1718201442154,-618.01277629,0.00016438,2]
[329248660,1718201442166,-501.55689487,0.00016438,2]
[329248661,1718201442179,-500.0,0.00016438,2]
[329248662,1718201442200,-500.0,0.00016438,2]
[329248663,1718201442211,-500.0,0.00016438,2]
[329248664,1718201442224,-500.0,0.00016438,2]
[329248665,1718201442235,-263.59173204,0.00016438,2]
[329248666,1718201442246,-511.06814897,0.00016438,2]
[329248667,1718201442256,-554.63,0.00016438,4]
[329248668,1718201442282,-500.0,0.00016438,2]
[329248669,1718201442301,-500.0,0.00016438,2]
[329248670,1718201442317,-500.0,0.00016438,2]
[329248671,1718201442329,-489.57379385,0.00016438,2]
[329248672,1718201442345,-500.0,0.00016438,2]
[329248673,1718201442361,-500.0,0.00016438,2]
[329248674,1718201442377,-250.0,0.00016438,2]
[329248675,1718201442398,-500.0,0.00016438,2]
[329248676,1718201442415,-500.0,0.00016438,2]
[329248677,1718201442431,-501.53919583,0.00016438,2]
[329248678,1718201442454,-500.0,0.00016438,2]
[329248679,1718201442473,-283.00068631,0.00016438,2]
[329248680,1718201442497,-500.0,0.00016438,2]
[329248681,1718201442519,-525.20008185,0.00016438,2]
[329248682,1718201442531,-521.8,0.00016438,2]
[329248683,1718201442544,-500.0,0.00016438,2]
[329248684,1718201442561,-500.0,0.00016438,2]
[329248685,1718201442584,-501.38927062,0.00016438,2]
[329248686,1718201442603,-572.00239018,0.00016438,2]
[329248687,1718201442632,-500.0,0.00016438,2]
[329248688,1718201442644,-503.40066937,0.00016438,2]
[329248689,1718201442668,-500.0,0.00016438,2]
[329248690,1718201442680,-500.0,0.00016438,2]
[329248691,1718201442691,-500.0,0.00016438,2]
[329248692,1718201442706,-500.0,0.00016438,2]
[329248693,1718201442718,-500.0,0.00016438,2]
[329248694,1718201442731,-558.67702995,0.00016438,2]
[329248695,1718201442747,-524.55338228,0.00016438,2]
[329248696,1718201442758,-500.0,0.00016438,2]
[329248697,1718201442768,-500.0,0.00016438,2]
[329248698,1718201442779,-500.0,0.00016438,2]
[329248699,1718201442791,-500.0,0.00016438,2]
[329248700,1718201442823,-500.0,0.00016438,2]
[329248702,1718201442868,-500.0,0.00016438,2]
[329248704,1718201442889,-500.0,0.00016438,2]
[329248706,1718201442909,-500.0,0.00016438,2]
[329248708,1718201442930,-500.0,0.00016438,2]
[329248710,1718201442942,-500.0,0.00016438,2]
[329248712,1718201442956,-500.0,0.00016438,2]
[329248713,1718201442967,-500.0,0.00016438,2]
[329248714,1718201442988,-500.0,0.00016438,2]
[329248715,1718201443004,-901.64,0.00016438,2]
[329248716,1718201443023,-500.0,0.00016438,2]
[329248717,1718201443037,-542.58,0.00016438,2]
[329248718,1718201443049,-549.95,0.00016438,2]
[329248719,1718201443076,-500.0,0.00016438,2]
[329248720,1718201443087,-500.0,0.00016438,2]
[329248721,1718201443098,-500.0,0.00016438,2]
[329248722,1718201443115,-500.0,0.00016438,2]
[329248723,1718201443143,-214.8496273,0.00016438,2]
[329248724,1718201443156,-514.72338599,0.00016438,2]
[329248725,1718201443169,-500.0,0.00016438,2]
[329248726,1718201443181,-500.0,0.00016438,2]
[329248727,1718201443208,-500.0,0.00016438,2]
[329248728,1718201443224,-504.86257942,0.00016438,2]
[329248729,1718201443236,-500.0,0.00016438,2]
[329248730,1718201443253,-500.0,0.00016438,2]
[329248731,1718201443265,-762.56,0.00016438,2]
[329248732,1718201443277,-500.0,0.00016438,2]
[329248733,1718201443295,-500.0,0.00016438,2]
[329248734,1718201443306,-500.0,0.00016438,2]
[329248735,1718201443347,-502.13325846,0.00016438,2]
[329248736,1718201443379,-500.0,0.00016438,2]
[329248737,1718201443413,-502.97530298,0.00016438,2]
[329248738,1718201443431,-500.0,0.00016438,2]
[329248739,1718201443442,-500.0,0.00016438,2]
[329248740,1718201443452,-500.0,0.00016438,2]
[329248741,1718201443463,-500.0,0.00016438,2]
[329248742,1718201443491,-505.05332629,0.00016438,2]
[329248743,1718201443502,-504.82390423,0.00016438,2]
[329248744,1718201443514,-500.0,0.00016438,2]
[329248745,1718201443528,-515.81026337,0.00016438,2]
[329248746,1718201443546,-500.0,0.00016438,2]
[329248748,1718201443604,-370.64567787,0.00016438,2]
[329248750,1718201443617,-500.0,0.00016438,2]
[329248751,1718201443629,-510.16329444,0.00016438,2]
[329248752,1718201443640,-504.29185432,0.00016438,2]
[329248754,1718201443652,-500.0,0.00016438,2]
[329248756,1718201443665,-500.0,0.00016438,2]
[329248757,1718201443676,-500.0,0.00016438,2]
[329248759,1718201443690,-500.0,0.00016438,2]
[329248761,1718201443701,-500.0,0.00016438,2]
[329248763,1718201443712,-500.0,0.00016438,2]
[329248764,1718201443725,-500.0,0.00016438,2]
[329248766,1718201443738,-500.0,0.00016438,2]
[329248768,1718201443750,-500.0,0.00016438,2]
[329248770,1718201443764,-500.0,0.00016438,2]
[329248772,1718201443777,-500.0,0.00016438,2]
[329248774,1718201443794,-500.0,0.00016438,2]
[329248776,1718201443805,-500.0,0.00016438,2]
[329248777,1718201443817,-500.0,0.00016438,2]
[329248778,1718201443831,-500.0,0.00016438,2]
[329248779,1718201443842,-500.0,0.00016438,2]
[329248780,1718201443858,-500.0,0.00016438,2]
[329248781,1718201443869,-500.0,0.00016438,2]
[329248782,1718201443880,-500.0,0.00016438,2]
[329248783,1718201443891,-298.09295366,0.00016438,2]
[329248784,1718201443902,-500.0,0.00016438,2]
[329248785,1718201443913,-500.0,0.00016438,2]
[329248786,1718201443924,-500.0,0.00016438,2]
[329248787,1718201443935,-500.0,0.00016438,2]
[329248788,1718201443946,-500.0,0.00016438,2]
[329248789,1718201443959,-500.0,0.00016438,2]
[329248790,1718201443970,-636.0,0.00016438,2]
[329248791,1718201443984,-500.0,0.00016438,2]
[329248792,1718201443995,-500.0,0.00016438,2]
[329248793,1718201444008,-500.0,0.00016438,2]
[329248794,1718201444019,-500.0,0.00016438,2]
[329248795,1718201444030,-502.56547321,0.00016438,2]
[329248796,1718201444041,-500.0,0.00016438,2]
[329248797,1718201444052,-500.0,0.00016438,2]
[329248798,1718201444078,-500.0,0.00016438,2]
[329248799,1718201444092,-754.42,0.00016438,2]
[329248800,1718201444104,-500.0,0.00016438,2]
[329248801,1718201444117,-500.0,0.00016438,2]
[329248802,1718201444140,-500.0,0.00016438,2]
[329248803,1718201444169,-500.0,0.00016438,2]
[329248804,1718201444319,-500.0,0.00016438,2]
[329248805,1718201444331,-359.93715785,0.00016438,2]
[329248806,1718201444342,-500.0,0.00016438,2]
[329248807,1718201444355,-500.0,0.00016438,2]
[329248808,1718201444371,-500.0,0.00016438,2]
[329248809,1718201444382,-375.15954391,0.00016438,2]
[329248810,1718201444393,-500.0,0.00016438,2]
[329248813,1718201444405,-500.0,0.00016438,2]
[329248816,1718201444416,-576.65,0.00016438,2]
[329248819,1718201444428,-500.0,0.00016438,2]
[329248822,1718201444439,-500.0,0.00016438,2]
[329248825,1718201444452,-500.0,0.00016438,2]
[329248828,1718201444462,-500.0,0.00016438,2]